[Event "GrandPrix_29.05"]
[Site "Chess.com"]
[Date "2020.05.29"]
[Round "7"]
[White "hubertsmazak"]
[Black "MikaelyanArman1996"]
[Result "1/2-1/2"]
[WhiteElo "2419"]
[BlackElo "2303"]
[TimeControl "600+2"]
[EndTime "12:33:02 PDT"]
[Termination "Game drawn by stalemate"]

1. d4 {[%clk 0:10:01.9]} 1... Nf6 {[%clk 0:10:00.4]} 2. c4 {[%clk 0:10:02.8]}
2... g6 {[%clk 0:10:01.1]} 3. Nc3 {[%clk 0:10:03.5]} 3... Bg7 {[%clk 0:10:02.2]}
4. e4 {[%clk 0:10:04.8]} 4... d6 {[%clk 0:10:03.2]} 5. Be2 {[%clk 0:10:06.3]}
5... O-O {[%clk 0:10:04.1]} 6. Nf3 {[%clk 0:10:07.7]} 6... c5 {[%clk 0:10:01.8]}
7. O-O {[%clk 0:10:08.3]} 7... cxd4 {[%clk 0:09:56.2]} 8. Nxd4 {[%clk
0:10:10.2]} 8... Nc6 {[%clk 0:09:57.2]} 9. Nc2 {[%clk 0:10:11.3]} 9... Nd7
{[%clk 0:09:53]} 10. Bd2 {[%clk 0:10:05.4]} 10... Nc5 {[%clk 0:09:42]} 11. b4
{[%clk 0:09:45.1]} 11... Ne6 {[%clk 0:09:28.4]} 12. Rb1 {[%clk 0:09:38.7]} 12...
a5 {[%clk 0:09:18]} 13. a3 {[%clk 0:09:35.6]} 13... axb4 {[%clk 0:09:18]} 14.
axb4 {[%clk 0:09:37.5]} 14... Ned4 {[%clk 0:09:01.8]} 15. Nxd4 {[%clk
0:09:33.2]} 15... Nxd4 {[%clk 0:09:03.7]} 16. Bd3 {[%clk 0:09:30.7]} 16... Ra3
{[%clk 0:08:34.6]} 17. Re1 {[%clk 0:08:33.5]} 17... Be6 {[%clk 0:08:06.8]} 18.
Qc1 {[%clk 0:08:10.8]} 18... Qa8 {[%clk 0:07:49.1]} 19. Qd1 {[%clk 0:07:05.3]}
19... Rc8 {[%clk 0:07:35.5]} 20. Bf1 {[%clk 0:07:05.3]} 20... Bxc4 {[%clk
0:07:13.2]} 21. Bxc4 {[%clk 0:07:04.7]} 21... Rxc4 {[%clk 0:07:15.1]} 22. Nd5
{[%clk 0:07:06.6]} 22... Qe8 {[%clk 0:06:13.4]} 23. Bg5 {[%clk 0:07:00.3]} 23...
f6 {[%clk 0:05:27.1]} 24. Ne3 {[%clk 0:06:41]} 24... Rc7 {[%clk 0:04:39.6]} 25.
Qxd4 {[%clk 0:06:25.2]} 25... fxg5 {[%clk 0:04:39.8]} 26. Qd5+ {[%clk
0:06:24.7]} 26... Qf7 {[%clk 0:04:31.1]} 27. Qxg5 {[%clk 0:06:23.9]} 27... Ra2
{[%clk 0:04:24.6]} 28. Qd5 {[%clk 0:06:14.9]} 28... Rxf2 {[%clk 0:03:54.1]} 29.
Rec1 {[%clk 0:05:50]} 29... Rxc1+ {[%clk 0:03:05]} 30. Rxc1 {[%clk 0:05:51.9]}
30... Qxd5 {[%clk 0:03:02.4]} 31. Nxd5 {[%clk 0:05:36.4]} 31... Bd4 {[%clk
0:02:52.2]} 32. Kh1 {[%clk 0:05:18.8]} 32... e6 {[%clk 0:02:31.4]} 33. Nc7
{[%clk 0:05:11.5]} 33... Be3 {[%clk 0:02:04.7]} 34. Rd1 {[%clk 0:04:50]} 34...
Kf7 {[%clk 0:01:59.2]} 35. Nb5 {[%clk 0:04:45.9]} 35... Rd2 {[%clk 0:00:52.4]}
36. Nxd6+ {[%clk 0:04:38]} 36... Ke7 {[%clk 0:00:51.8]} 37. Rxd2 {[%clk
0:04:38]} 37... Bxd2 {[%clk 0:00:53.7]} 38. Nb5 {[%clk 0:04:07.7]} 38... Bxb4
{[%clk 0:00:47.3]} 39. Kg1 {[%clk 0:04:09.6]} 39... Kd7 {[%clk 0:00:38.3]} 40.
Kf2 {[%clk 0:04:10.5]} 40... e5 {[%clk 0:00:33.2]} 41. Ke2 {[%clk 0:04:03]}
41... Kc6 {[%clk 0:00:25.5]} 42. Na7+ {[%clk 0:04:03.8]} 42... Kb6 {[%clk
0:00:19.8]} 43. Nc8+ {[%clk 0:04:04.5]} 43... Kc7 {[%clk 0:00:19.9]} 44. Na7
{[%clk 0:04:05.8]} 44... b5 {[%clk 0:00:07.5]} 45. Kd3 {[%clk 0:03:55.9]} 45...
Kb6 {[%clk 0:00:08.5]} 46. Nc8+ {[%clk 0:03:56.5]} 46... Kc6 {[%clk 0:00:08.8]}
47. Na7+ {[%clk 0:03:53.8]} 47... Kc5 {[%clk 0:00:09.6]} 48. Nc8 {[%clk
0:03:54.6]} 48... Be1 {[%clk 0:00:08.4]} 49. Ne7 {[%clk 0:03:53.7]} 49... b4
{[%clk 0:00:09.4]} 50. Nd5 {[%clk 0:03:25.6]} 50... Bf2 {[%clk 0:00:10]} 51. Nf6
{[%clk 0:03:22.8]} 51... h5 {[%clk 0:00:06.6]} 52. Nd7+ {[%clk 0:03:19.8]} 52...
Kd6 {[%clk 0:00:07.6]} 53. Nf8 {[%clk 0:03:20.6]} 53... g5 {[%clk 0:00:05.2]}
54. Nh7 {[%clk 0:03:15.9]} 54... g4 {[%clk 0:00:05.1]} 55. Nf6 {[%clk
0:03:16.9]} 55... Bd4 {[%clk 0:00:05.6]} 56. Kc4 {[%clk 0:03:14.5]} 56... Bc3
{[%clk 0:00:04.6]} 57. Nxh5 {[%clk 0:03:13.8]} 57... Ke6 {[%clk 0:00:05.7]} 58.
Ng3 {[%clk 0:02:41.9]} 58... Kf6 {[%clk 0:00:06.9]} 59. Ne2 {[%clk 0:02:43]}
59... Be1 {[%clk 0:00:07.5]} 60. Nc1 {[%clk 0:02:42.6]} 60... Kg5 {[%clk
0:00:06.7]} 61. Nd3 {[%clk 0:02:41.8]} 61... Bc3 {[%clk 0:00:07.5]} 62. g3
{[%clk 0:02:39]} 62... Bd4 {[%clk 0:00:07.1]} 63. Kxb4 {[%clk 0:01:48.4]} 63...
Bg1 {[%clk 0:00:07.9]} 64. Nxe5 {[%clk 0:01:47.3]} 64... Bxh2 {[%clk 0:00:08.5]}
65. Nxg4 {[%clk 0:01:46.5]} 65... Kxg4 {[%clk 0:00:09.8]} 66. e5 {[%clk
0:01:41.2]} 66... Bxg3 {[%clk 0:00:10.3]} 67. e6 {[%clk 0:01:41.7]} 67... Bh4
{[%clk 0:00:10.5]} 68. Kc5 {[%clk 0:01:42.6]} 68... Be7+ {[%clk 0:00:11.2]} 69.
Kc6 {[%clk 0:01:43.7]} 69... Kf5 {[%clk 0:00:12.6]} 70. Kd7 {[%clk 0:01:45]}
70... Kf6 {[%clk 0:00:13.7]} 71. Ke8 {[%clk 0:01:46.4]} 71... Kxe6 {[%clk
0:00:15]} 1/2-1/2

[Event "GrandPrix_29.05"]
[Site "Chess.com"]
[Date "2020.05.29"]
[Round "7"]
[White "econpower"]
[Black "DinaBelenkaya"]
[Result "1-0"]
[WhiteElo "2203"]
[BlackElo "1598"]
[TimeControl "600+2"]
[EndTime "12:33:10 PDT"]
[Termination "econpower won by resignation"]

1. c4 {[%clk 0:10:01.9]} 1... e5 {[%clk 0:10:00.4]} 2. g3 {[%clk 0:10:02.8]}
2... Nc6 {[%clk 0:09:57.3]} 3. Bg2 {[%clk 0:10:04.1]} 3... g6 {[%clk 0:09:36.7]}
4. Nc3 {[%clk 0:10:01]} 4... Bg7 {[%clk 0:09:28.2]} 5. e3 {[%clk 0:10:02.1]}
5... Nge7 {[%clk 0:09:26.5]} 6. Nge2 {[%clk 0:10:02.7]} 6... O-O {[%clk
0:09:27.4]} 7. O-O {[%clk 0:10:04.2]} 7... d6 {[%clk 0:09:28.7]} 8. Rb1 {[%clk
0:10:04.6]} 8... Be6 {[%clk 0:09:17.6]} 9. Nd5 {[%clk 0:10:05.4]} 9... Qd7
{[%clk 0:09:18.1]} 10. d3 {[%clk 0:10:06]} 10... Nd8 {[%clk 0:09:18.9]} 11. b4
{[%clk 0:10:06.4]} 11... c6 {[%clk 0:09:20.1]} 12. Nxe7+ {[%clk 0:10:07.9]}
12... Qxe7 {[%clk 0:09:21.5]} 13. b5 {[%clk 0:10:09.8]} 13... f5 {[%clk
0:08:36.1]} 14. bxc6 {[%clk 0:10:10]} 14... bxc6 {[%clk 0:08:34.7]} 15. Ba3
{[%clk 0:10:11.7]} 15... Qd7 {[%clk 0:08:26.4]} 16. Qa4 {[%clk 0:10:02.6]} 16...
g5 {[%clk 0:07:33.9]} 17. f4 {[%clk 0:10:01.8]} 17... Rc8 {[%clk 0:07:09.1]} 18.
d4 {[%clk 0:08:34.9]} 18... gxf4 {[%clk 0:05:18.6]} 19. dxe5 {[%clk 0:08:27.3]}
19... fxe3 {[%clk 0:02:36]} 20. Bxd6 {[%clk 0:08:17.9]} 20... Re8 {[%clk
0:02:09.7]} 21. Nd4 {[%clk 0:07:26.6]} 21... c5 {[%clk 0:01:25.8]} 22. Qxd7
{[%clk 0:07:24.3]} 22... Bxd7 {[%clk 0:01:27.7]} 23. Bd5+ {[%clk 0:07:08.9]}
23... Kh8 {[%clk 0:01:17.2]} 24. Nf3 {[%clk 0:04:58.9]} 24... Nc6 {[%clk
0:01:07.8]} 25. Ng5 {[%clk 0:04:33.8]} 25... Nxe5 {[%clk 0:01:08.7]} 26. Rb7
{[%clk 0:01:08.2]} 26... e2 {[%clk 0:00:21]} 27. Re1 {[%clk 0:01:03.9]} 27...
Nd3 {[%clk 0:00:10.5]} 28. Nf7+ {[%clk 0:01:04]} 28... Kg8 {[%clk 0:00:11.3]}
29. Ne5+ {[%clk 0:00:52.2]} 29... Kh8 {[%clk 0:00:12]} 30. Nxd3 {[%clk
0:00:53.1]} 30... Bd4+ {[%clk 0:00:02.7]} 31. Kg2 {[%clk 0:00:53.1]} 31... Bc6
{[%clk 0:00:04]} 32. Bxc6 {[%clk 0:00:50.5]} 32... Rxc6 {[%clk 0:00:05.4]} 33.
Rb8 {[%clk 0:00:47]} 33... Rxb8 {[%clk 0:00:03.3]} 34. Bxb8 {[%clk 0:00:47.8]}
34... Rb6 {[%clk 0:00:04.6]} 35. Bf4 {[%clk 0:00:41.8]} 35... Re6 {[%clk
0:00:05.5]} 36. Kf3 {[%clk 0:00:42.2]} 36... Ra6 {[%clk 0:00:03.4]} 37. Be5+
{[%clk 0:00:37.7]} 37... Bxe5 {[%clk 0:00:02.3]} 38. Nxe5 {[%clk 0:00:39.6]}
38... Ra3+ {[%clk 0:00:02.1]} 39. Kf2 {[%clk 0:00:37.7]} 39... Rxa2 {[%clk
0:00:02.7]} 40. Rxe2 {[%clk 0:00:39.3]} 40... Ra4 {[%clk 0:00:03.9]} 41. Rc2
{[%clk 0:00:25.9]} 41... Kg7 {[%clk 0:00:04.9]} 42. Ke3 {[%clk 0:00:27.5]} 42...
a5 {[%clk 0:00:02.6]} 43. Kf4 {[%clk 0:00:27.1]} 43... Ra1 {[%clk 0:00:02.3]}
44. Nd7 {[%clk 0:00:25.3]} 44... Rf1+ {[%clk 0:00:02.1]} 45. Ke5 {[%clk
0:00:25.8]} 45... a4 {[%clk 0:00:03.5]} 46. Nxc5 {[%clk 0:00:26.5]} 46... a3
{[%clk 0:00:04]} 47. Ra2 {[%clk 0:00:27.8]} 47... Rf3 {[%clk 0:00:05.1]} 48. Kd4
{[%clk 0:00:27.9]} 48... Kf6 {[%clk 0:00:06.1]} 49. Nd3 {[%clk 0:00:29.5]} 49...
Kg5 {[%clk 0:00:06.2]} 50. Rxa3 {[%clk 0:00:30.5]} 50... f4 {[%clk 0:00:07.4]}
51. gxf4+ {[%clk 0:00:31.5]} 51... Kh4 {[%clk 0:00:07.4]} 52. c5 {[%clk
0:00:32.6]} 52... h5 {[%clk 0:00:06.9]} 53. c6 {[%clk 0:00:33.5]} 53... Rxd3+
{[%clk 0:00:06.3]} 54. Rxd3 {[%clk 0:00:33.9]} 54... Kg4 {[%clk 0:00:06.6]} 55.
c7 {[%clk 0:00:34.9]} 55... Kh4 {[%clk 0:00:07.4]} 56. f5 {[%clk 0:00:33.4]}
56... Kg5 {[%clk 0:00:07.5]} 57. c8=Q {[%clk 0:00:34.1]} 57... Kh4 {[%clk
0:00:08.3]} 1-0

[Event "GrandPrix_29.05"]
[Site "Chess.com"]
[Date "2020.05.29"]
[Round "7"]
[White "Nikame"]
[Black "Yurovskykh_Alexander"]
[Result "1-0"]
[WhiteElo "2405"]
[BlackElo "2186"]
[TimeControl "600+2"]
[EndTime "12:33:11 PDT"]
[Termination "Nikame won by resignation"]

1. d4 {[%clk 0:10:01.9]} 1... d5 {[%clk 0:09:59.7]} 2. Bg5 {[%clk 0:10:00.5]}
2... h6 {[%clk 0:09:43.3]} 3. Bh4 {[%clk 0:09:59.5]} 3... c6 {[%clk 0:09:06.3]}
4. e3 {[%clk 0:09:58.5]} 4... Qb6 {[%clk 0:09:05.7]} 5. Qc1 {[%clk 0:09:58.3]}
5... Bf5 {[%clk 0:09:06.3]} 6. Nf3 {[%clk 0:09:50.6]} 6... e6 {[%clk 0:09:01.6]}
7. Be2 {[%clk 0:09:45.4]} 7... Be7 {[%clk 0:08:43]} 8. O-O {[%clk 0:09:35.4]}
8... Bxh4 {[%clk 0:08:40.6]} 9. Nxh4 {[%clk 0:09:36.3]} 9... Nf6 {[%clk
0:08:23.9]} 10. Nxf5 {[%clk 0:09:33.3]} 10... exf5 {[%clk 0:08:25.8]} 11. c4
{[%clk 0:09:32.8]} 11... dxc4 {[%clk 0:08:20]} 12. Bxc4 {[%clk 0:09:29.1]} 12...
Nbd7 {[%clk 0:08:18]} 13. Qc2 {[%clk 0:09:26.3]} 13... g6 {[%clk 0:08:17.8]} 14.
Nc3 {[%clk 0:09:11.7]} 14... O-O {[%clk 0:08:13.2]} 15. a3 {[%clk 0:09:05.2]}
15... a5 {[%clk 0:08:00.7]} 16. Rab1 {[%clk 0:09:03]} 16... Qd8 {[%clk
0:07:35.4]} 17. Ba2 {[%clk 0:08:52.4]} 17... Qe7 {[%clk 0:07:26.1]} 18. Rfe1
{[%clk 0:08:15.2]} 18... Kg7 {[%clk 0:07:16.4]} 19. Qb3 {[%clk 0:07:52]} 19...
Ra7 {[%clk 0:06:51.8]} 20. h3 {[%clk 0:07:34.6]} 20... Rfa8 {[%clk 0:06:37.3]}
21. d5 {[%clk 0:06:50.5]} 21... a4 {[%clk 0:05:08.7]} 22. Qd1 {[%clk 0:06:39.5]}
22... cxd5 {[%clk 0:04:54.4]} 23. Nxd5 {[%clk 0:06:24.5]} 23... Nxd5 {[%clk
0:04:54.9]} 24. Qxd5 {[%clk 0:06:24.1]} 24... Nf6 {[%clk 0:04:55.7]} 25. Qd4
{[%clk 0:06:22.9]} 25... b5 {[%clk 0:03:58.8]} 26. Rbd1 {[%clk 0:06:02.7]} 26...
Rd7 {[%clk 0:03:26.3]} 27. Qc3 {[%clk 0:06:00.1]} 27... Rad8 {[%clk 0:03:20.9]}
28. Rxd7 {[%clk 0:05:58.1]} 28... Qxd7 {[%clk 0:03:20.1]} 29. Rc1 {[%clk
0:05:06.8]} 29... Qd2 {[%clk 0:03:07.1]} 30. Qxd2 {[%clk 0:05:03.8]} 30... Rxd2
{[%clk 0:03:09]} 31. Rc7 {[%clk 0:05:04.3]} 31... Rd7 {[%clk 0:03:05.2]} 32.
Rxd7 {[%clk 0:05:00.7]} 32... Nxd7 {[%clk 0:03:07.1]} 33. Bd5 {[%clk 0:04:59]}
33... Ne5 {[%clk 0:02:39.7]} 34. Kf1 {[%clk 0:04:59.4]} 34... Nd3 {[%clk
0:02:21.9]} 35. Bc6 {[%clk 0:04:53.1]} 35... b4 {[%clk 0:02:19.4]} 36. axb4
{[%clk 0:04:49.5]} 36... Nxb2 {[%clk 0:02:01.3]} 37. Ke2 {[%clk 0:04:17.8]}
37... Kf6 {[%clk 0:01:54.6]} 38. Kd2 {[%clk 0:03:51.8]} 38... Ke5 {[%clk
0:01:46.4]} 39. Kc2 {[%clk 0:03:13.1]} 39... a3 {[%clk 0:01:29.3]} 40. Bf3
{[%clk 0:02:48.8]} 40... f4 {[%clk 0:00:54.2]} 41. exf4+ {[%clk 0:02:33.1]}
41... Kd4 {[%clk 0:00:43.2]} 42. Kb3 {[%clk 0:02:10.1]} 42... Nd3 {[%clk
0:00:26.2]} 43. Kxa3 {[%clk 0:02:06.8]} 43... Nxf2 {[%clk 0:00:21.1]} 44. Ka4
{[%clk 0:02:02.1]} 44... Nd3 {[%clk 0:00:21.8]} 45. Ka5 {[%clk 0:01:58.9]} 45...
Nxf4 {[%clk 0:00:08]} 46. b5 {[%clk 0:01:59.7]} 46... Nd3 {[%clk 0:00:07.7]} 47.
b6 {[%clk 0:01:52.2]} 47... Nc5 {[%clk 0:00:08.8]} 48. Kb5 {[%clk 0:01:44.2]}
48... f5 {[%clk 0:00:09.4]} 49. b7 {[%clk 0:01:42.4]} 49... Nxb7 {[%clk
0:00:09.4]} 50. Bxb7 {[%clk 0:01:43.9]} 50... Ke3 {[%clk 0:00:07.9]} 51. Kc5
{[%clk 0:01:23.7]} 51... g5 {[%clk 0:00:07.7]} 52. Kd6 {[%clk 0:00:54.9]} 52...
g4 {[%clk 0:00:08]} 53. hxg4 {[%clk 0:00:49.3]} 53... fxg4 {[%clk 0:00:09.6]}
54. Ke5 {[%clk 0:00:48.7]} 54... h5 {[%clk 0:00:05.4]} 55. Kf5 {[%clk
0:00:49.5]} 55... Kf2 {[%clk 0:00:03.6]} 56. Kg5 {[%clk 0:00:50.1]} 56... Kg3
{[%clk 0:00:04.1]} 57. Kxh5 {[%clk 0:00:51]} 57... Kf4 {[%clk 0:00:05.3]} 58.
Kh4 {[%clk 0:00:52]} 58... g3 {[%clk 0:00:03.7]} 59. Kh3 {[%clk 0:00:51.5]} 1-0

[Event "GrandPrix_29.05"]
[Site "Chess.com"]
[Date "2020.05.29"]
[Round "7"]
[White "KuzubovYuriy"]
[Black "Vuk2000"]
[Result "0-1"]
[WhiteElo "2370"]
[BlackElo "2361"]
[TimeControl "600+2"]
[EndTime "12:33:13 PDT"]
[Termination "Vuk2000 won by resignation"]

1. d4 {[%clk 0:09:26.1]} 1... e6 {[%clk 0:09:58.7]} 2. c4 {[%clk 0:09:19.6]}
2... Nf6 {[%clk 0:09:59.5]} 3. Nf3 {[%clk 0:09:20.1]} 3... b6 {[%clk 0:09:59]}
4. g3 {[%clk 0:09:21.3]} 4... Ba6 {[%clk 0:09:59.6]} 5. Qc2 {[%clk 0:09:22.5]}
5... Bb7 {[%clk 0:09:57.3]} 6. Bg2 {[%clk 0:09:19.1]} 6... c5 {[%clk 0:09:54.4]}
7. d5 {[%clk 0:09:20.5]} 7... exd5 {[%clk 0:09:54.6]} 8. cxd5 {[%clk 0:09:22.4]}
8... Nxd5 {[%clk 0:09:55.4]} 9. O-O {[%clk 0:09:23.4]} 9... Be7 {[%clk
0:09:54.9]} 10. Rd1 {[%clk 0:09:23.6]} 10... Qc8 {[%clk 0:09:55.1]} 11. a3
{[%clk 0:05:50.7]} 11... h6 {[%clk 0:09:05.3]} 12. e4 {[%clk 0:04:42.9]} 12...
Nc7 {[%clk 0:08:49.6]} 13. Nc3 {[%clk 0:04:42.9]} 13... Nc6 {[%clk 0:08:25.4]}
14. e5 {[%clk 0:04:21.9]} 14... Ne6 {[%clk 0:08:14.1]} 15. Be3 {[%clk
0:04:08.2]} 15... O-O {[%clk 0:06:22.8]} 16. Nd5 {[%clk 0:04:07.5]} 16... Re8
{[%clk 0:06:18.2]} 17. Rac1 {[%clk 0:03:57.6]} 17... Bd8 {[%clk 0:06:05.1]} 18.
h4 {[%clk 0:02:58.6]} 18... Nc7 {[%clk 0:05:21.5]} 19. Bxh6 {[%clk 0:01:21.8]}
19... Nxd5 {[%clk 0:05:00.1]} 20. Bxg7 {[%clk 0:01:18.1]} 20... Kxg7 {[%clk
0:04:46.3]} 21. Rxd5 {[%clk 0:01:16.5]} 21... Nb4 {[%clk 0:04:31.4]} 22. axb4
{[%clk 0:00:50.7]} 22... Bxd5 {[%clk 0:04:31.6]} 23. Qd3 {[%clk 0:00:41.9]}
23... Bxf3 {[%clk 0:03:14]} 24. Qxf3 {[%clk 0:00:41.4]} 24... Bc7 {[%clk
0:03:05.1]} 25. Qg4+ {[%clk 0:00:35.3]} 25... Kf8 {[%clk 0:03:04.6]} 26. bxc5
{[%clk 0:00:27.2]} 26... Bxe5 {[%clk 0:02:31.2]} 27. Bxa8 {[%clk 0:00:24.8]}
27... Qxa8 {[%clk 0:02:33.1]} 28. cxb6 {[%clk 0:00:23.9]} 28... axb6 {[%clk
0:02:35]} 29. Qxd7 {[%clk 0:00:23.6]} 29... Qf3 {[%clk 0:02:35.3]} 30. Re1
{[%clk 0:00:20.8]} 30... Qf6 {[%clk 0:02:22.3]} 31. Kg2 {[%clk 0:00:18.4]} 31...
Re6 {[%clk 0:02:16.3]} 32. b3 {[%clk 0:00:15.8]} 32... Rd6 {[%clk 0:01:54.8]}
33. Qc8+ {[%clk 0:00:16.1]} 33... Rd8 {[%clk 0:01:54]} 34. Qg4 {[%clk
0:00:15.5]} 34... Bd4 {[%clk 0:01:51.4]} 35. Re2 {[%clk 0:00:15.7]} 35... Bc5
{[%clk 0:01:51.3]} 36. b4 {[%clk 0:00:16.3]} 36... Bd4 {[%clk 0:01:47.9]} 37. h5
{[%clk 0:00:15.8]} 37... Rd5 {[%clk 0:01:46.6]} 38. Rd2 {[%clk 0:00:12.7]} 38...
Rd6 {[%clk 0:01:42.3]} 39. h6 {[%clk 0:00:12.3]} 39... Be5 {[%clk 0:01:10.2]}
40. Qc8+ {[%clk 0:00:12.4]} 40... Ke7 {[%clk 0:01:10.8]} 41. Re2 {[%clk
0:00:12]} 41... Qe6 {[%clk 0:01:01.1]} 42. Qb7+ {[%clk 0:00:11.6]} 42... Rd7
{[%clk 0:00:53.3]} 43. Qe4 {[%clk 0:00:12.5]} 43... Bf6 {[%clk 0:00:27.3]} 44.
Qf3 {[%clk 0:00:12.7]} 44... Be5 {[%clk 0:00:28.2]} 45. h7 {[%clk 0:00:11.7]}
45... Rd8 {[%clk 0:00:28.5]} 46. Qh5 {[%clk 0:00:12.3]} 46... Qd5+ {[%clk
0:00:13.8]} 47. f3 {[%clk 0:00:13.6]} 47... Kd6 {[%clk 0:00:13.4]} 48. Qh6+
{[%clk 0:00:13.7]} 48... Qe6 {[%clk 0:00:12.6]} 49. Rd2+ {[%clk 0:00:14.1]}
49... Ke7 {[%clk 0:00:13.5]} 50. Rxd8 {[%clk 0:00:14.6]} 50... Qxh6 {[%clk
0:00:12.4]} 0-1

[Event "GrandPrix_29.05"]
[Site "Chess.com"]
[Date "2020.05.29"]
[Round "7"]
[White "Valeriy_Neverov"]
[Black "bedgasm"]
[Result "0-1"]
[WhiteElo "2268"]
[BlackElo "2258"]
[TimeControl "600+2"]
[EndTime "12:33:13 PDT"]
[Termination "bedgasm won on time"]

1. d4 {[%clk 0:10:00.3]} 1... Nf6 {[%clk 0:09:49.7]} 2. Nf3 {[%clk 0:09:59.8]}
2... d5 {[%clk 0:09:49.6]} 3. Bf4 {[%clk 0:09:57]} 3... c5 {[%clk 0:09:49.4]} 4.
e3 {[%clk 0:09:56.1]} 4... Nc6 {[%clk 0:09:47.9]} 5. c3 {[%clk 0:09:54.2]} 5...
Qb6 {[%clk 0:09:45.9]} 6. Qc1 {[%clk 0:09:33.9]} 6... Bf5 {[%clk 0:09:28.3]} 7.
Be2 {[%clk 0:09:25.7]} 7... h6 {[%clk 0:09:24.9]} 8. h3 {[%clk 0:09:23.2]} 8...
e6 {[%clk 0:09:25.4]} 9. O-O {[%clk 0:09:23.5]} 9... Be7 {[%clk 0:09:18.8]} 10.
Nbd2 {[%clk 0:09:20.5]} 10... O-O {[%clk 0:09:18.7]} 11. Nb3 {[%clk 0:08:13]}
11... Ne4 {[%clk 0:09:07.8]} 12. Nfd2 {[%clk 0:07:57.2]} 12... cxd4 {[%clk
0:08:53.2]} 13. Nxe4 {[%clk 0:07:36.1]} 13... Bxe4 {[%clk 0:08:46.7]} 14. exd4
{[%clk 0:07:36.7]} 14... Rac8 {[%clk 0:08:19.3]} 15. Qe3 {[%clk 0:06:47.1]}
15... a5 {[%clk 0:08:01.1]} 16. Qd2 {[%clk 0:05:32.5]} 16... a4 {[%clk
0:07:43.5]} 17. Nc1 {[%clk 0:05:31]} 17... Na5 {[%clk 0:07:38.1]} 18. Re1 {[%clk
0:05:11]} 18... g5 {[%clk 0:05:25.7]} 19. Bg3 {[%clk 0:04:54.4]} 19... Bg6
{[%clk 0:05:11.1]} 20. Bd3 {[%clk 0:04:45.2]} 20... Nc4 {[%clk 0:05:09.1]} 21.
Qc2 {[%clk 0:04:17.6]} 21... Qxb2 {[%clk 0:04:06.8]} 22. Bxg6 {[%clk 0:04:15]}
22... Qxa1 {[%clk 0:03:58.5]} 23. Nd3 {[%clk 0:03:18.3]} 23... Na3 {[%clk
0:03:57.2]} 24. Qe2 {[%clk 0:03:17.1]} 24... Qxc3 {[%clk 0:03:54.1]} 25. Qh5
{[%clk 0:03:01.6]} 25... Kg7 {[%clk 0:02:41.2]} 26. Bxf7 {[%clk 0:02:37.1]}
26... Rxf7 {[%clk 0:02:22.8]} 27. Rxe6 {[%clk 0:02:33]} 27... Qxd3 {[%clk
0:01:56.9]} 28. Qxh6+ {[%clk 0:02:26.7]} 28... Kg8 {[%clk 0:01:57.4]} 29. Be5
{[%clk 0:01:58]} 29... Bf6 {[%clk 0:01:46.2]} 30. Rxf6 {[%clk 0:01:41.9]} 30...
Rxf6 {[%clk 0:01:06.3]} 31. Qxf6 {[%clk 0:01:40.3]} 31... Qb1+ {[%clk
0:01:00.8]} 32. Kh2 {[%clk 0:01:38.1]} 32... Qh7 {[%clk 0:01:00.4]} 33. Qe6+
{[%clk 0:01:33.5]} 33... Qf7 {[%clk 0:00:56.3]} 34. Qxc8+ {[%clk 0:01:33.9]}
34... Kh7 {[%clk 0:00:55.4]} 35. h4 {[%clk 0:00:54]} 35... gxh4 {[%clk
0:00:49.8]} 36. Qh8+ {[%clk 0:00:48.7]} 36... Kg6 {[%clk 0:00:49.7]} 37. Qxh4
{[%clk 0:00:49.5]} 37... Qh7 {[%clk 0:00:46.2]} 38. Kg3 {[%clk 0:00:45.9]} 38...
Qxh4+ {[%clk 0:00:36.8]} 39. Kxh4 {[%clk 0:00:46.7]} 39... Nc4 {[%clk
0:00:36.3]} 40. Bf4 {[%clk 0:00:26.6]} 40... b5 {[%clk 0:00:35]} 41. Bc1 {[%clk
0:00:14.7]} 41... b4 {[%clk 0:00:29.3]} 42. f4 {[%clk 0:00:11.1]} 42... a3
{[%clk 0:00:10.3]} 43. g4 {[%clk 0:00:11.3]} 43... b3 {[%clk 0:00:09.8]} 44. f5+
{[%clk 0:00:12.2]} 44... Kf7 {[%clk 0:00:09]} 45. g5 {[%clk 0:00:07.1]} 45...
bxa2 {[%clk 0:00:09.1]} 46. g6+ {[%clk 0:00:07]} 46... Kg8 {[%clk 0:00:08.7]}
47. f6 {[%clk 0:00:06.1]} 47... Nd6 {[%clk 0:00:08.5]} 0-1